bitfinex/quotes_ETHUSD_20250626
["timestamp","ask_amount","ask_price","bid_price","bid_amount"]
[1750907217011,0.15777061,2509.9,2509.8,0.2204015]
[1750907217242,0.8141,2510.2,2509.8,0.2204015]
[1750907217738,0.8141,2510.2,2510.0,3.98392324]
[1750907217959,3.215,2510.8,2510.0,0.8176]
[1750907218115,0.3215,2510.7,2509.8,0.2204015]
[1750907218316,0.3215,2510.7,2510.1,3.98385537]
[1750907218549,0.3215,2510.7,2510.2,3.98373685]
[1750907218749,0.3215,2510.7,2510.0,3.98406236]
[1750907218933,3.181,2510.6,2510.2,3.98370854]
[1750907219138,3.181,2510.6,2509.9,3.98422247]
[1750907219322,0.8654,2510.5,2510.0,3.98402342]
[1750907219653,0.8654,2510.5,2509.8,0.2204015]
[1750907219654,0.8654,2510.5,2509.9,3.98419075]
[1750907219822,0.8654,2510.5,2509.9,3.98420166]
[1750907220225,0.8654,2510.5,2509.8,0.2204015]
[1750907220623,0.8654,2510.5,2509.9,3.98422247]
[1750907220846,1.27004,2510.5,2510.0,3.9839363]
[1750907221216,0.8654,2510.5,2510.1,3.98387349]
[1750907221525,10.0,2510.3,2509.8,0.2204015]
[1750907221717,0.8754,2510.2,2509.8,0.2204015]
[1750907222043,0.8223,2509.9,2509.8,0.2204015]
[1750907222217,4.0033,2509.9,2509.8,0.2204015]
[1750907222417,5.80203734,2509.9,2509.8,0.2204015]
[1750907222644,15.80203734,2509.9,2509.8,0.2204015]
[1750907222854,28.58725981,2509.9,2509.8,0.2204015]
[1750907223023,28.58725981,2509.9,2508.2,0.829]
[1750907223024,0.8082,2509.3,2507.6,0.829]
[1750907223215,9.88182,2509.2,2508.2,3.98688415]
[1750907223417,3.182,2509.1,2507.6,0.829]
[1750907223917,3.182,2509.1,2507.8,3.98755881]
[1750907224266,0.8082,2509.3,2508.1,0.8108]
[1750907224411,0.8082,2509.3,2508.2,3.98692289]
[1750907224620,0.8082,2509.3,2508.3,3.98676394]
[1750907224939,0.8082,2509.3,2508.1,4.79776564]
[1750907225115,1.76892,2509.3,2508.1,0.8108]
[1750907225318,2.09462449,2509.9,2508.6,7.97257434]
[1750907225319,1.79873734,2509.9,2508.6,7.97257434]
[1750907225639,0.8782,2510.4,2509.8,3.9843751]
[1750907225838,0.8782,2510.4,2509.8,4.1835751]
[1750907226044,0.8782,2510.4,2510.1,0.1984]
[1750907226263,0.33297272,2510.3,2510.1,0.1984]
[1750907227033,0.33297272,2510.3,2509.0,3.98564484]
[1750907227254,0.33297272,2510.3,2510.2,0.1984]
[1750907227419,0.8659,2510.2,2510.1,0.1984]
[1750907227619,0.8659,2510.2,2509.8,3.98438122]
[1750907227929,0.8659,2510.2,2510.1,0.1984]
[1750907227930,4.0479,2510.2,2510.1,0.1984]
[1750907228542,4.0479,2510.2,2509.3,3.98510216]
[1750907228717,4.0479,2510.2,2510.1,0.1984]
[1750907228922,1.19754034,2510.2,2510.1,0.1984]
[1750907229118,0.33164034,2510.2,2510.1,0.1984]
[1750907229650,0.33164034,2510.2,2510.1,4.18230502]
[1750907229959,0.33164034,2510.2,2510.1,0.1984]
[1750907232073,0.33164034,2510.2,2509.9,0.1992]
[1750907232372,0.33164034,2510.2,2509.1,0.8176]
[1750907232530,0.33164034,2510.2,2510.1,0.1984]
[1750907234669,0.33164034,2510.2,2510.1,4.18230502]
[1750907235260,0.33164034,2510.2,2510.1,0.1984]
[1750907235630,0.33164034,2510.2,2510.1,4.18230502]
[1750907236143,0.33164034,2510.2,2510.1,0.1984]
[1750907236762,0.33164034,2510.2,2510.1,4.18230502]
[1750907237331,4.0357,2510.7,2510.2,3.9836202]
[1750907237533,4.43927,2510.7,2510.6,0.1984]
[1750907237837,4.0357,2510.7,2510.6,0.1984]
[1750907238737,10.0,2510.9,2510.6,0.1984]
[1750907239363,0.8716,2511.2,2510.6,3.98305519]
[1750907239567,10.0,2511.1,2510.8,0.1984]
[1750907239732,1.43865727,2511.0,2510.8,0.1984]
[1750907241031,1.43865727,2511.0,2509.8,0.8463]
[1750907241252,0.1984,2510.8,2510.3,0.1984]
[1750907241661,0.7905,2510.7,2510.3,0.1984]
[1750907241971,0.1984,2510.6,2510.2,0.1984]
[1750907242288,0.1984,2510.4,2509.9,0.1992]
[1750907242484,0.1992,2510.0,2509.6,0.1992]
[1750907242777,12.74,2510.3,2509.1,0.7982]
[1750907242992,12.74,2510.3,2509.9,0.1992]
[1750907243285,14.91084,2510.3,2509.9,0.1992]
[1750907243787,0.8691,2510.2,2509.1,0.7982]
[1750907243993,0.8691,2510.2,2509.7,3.98440922]
[1750907243994,11.949,2510.1,2509.7,3.98440922]
[1750907244292,11.949,2510.1,2509.1,0.7982]
[1750907244647,11.949,2510.1,2509.2,3.98533397]
[1750907244988,11.949,2510.1,2509.7,3.98444501]
[1750907245190,3.182,2510.0,2509.6,3.98467116]
[1750907245484,3.182,2509.9,2509.5,3.98481136]
[1750907245843,4.40999727,2509.9,2509.3,3.98515174]
[1750907246473,4.40999727,2509.9,2508.8,4.84774259]
[1750907246796,10.8098,2509.8,2508.5,0.8708]
[1750907247093,4.79437057,2509.7,2508.5,3.98633643]
[1750907247258,3.98488879,2509.5,2508.5,3.98633643]
[1750907247462,0.7946,2509.3,2508.5,3.98633643]
[1750907247873,0.7946,2509.3,2508.4,3.98655426]
[1750907248068,0.7946,2509.3,2508.5,3.98644608]
[1750907248381,0.7946,2509.3,2508.5,3.98639524]
[1750907248582,0.7946,2509.3,2508.1,0.8708]
[1750907248753,3.146,2509.2,2508.1,0.8708]
[1750907249085,3.146,2509.2,2508.4,3.98646958]
[1750907249448,3.146,2509.2,2508.1,0.8708]
[1750907249659,3.146,2509.2,2508.6,3.98622409]
[1750907249882,10.0,2509.1,2508.3,3.98664193]
[1750907250112,10.0,2509.1,2507.5,0.8023]
[1750907250113,1.3146,2509.0,2507.5,0.8023]
[1750907250449,1.3146,2509.0,2508.2,3.98682774]
[1750907250673,1.3146,2509.0,2507.6,3.98787685]
[1750907250890,1.3146,2509.0,2508.6,3.98616245]
[1750907251099,0.7946,2509.3,2508.2,0.7956]
[1750907251252,3.146,2509.4,2509.2,3.98520971]
[1750907251468,3.146,2509.4,2509.1,3.98545368]
[1750907251681,3.146,2509.4,2508.8,3.98596587]
[1750907251874,3.4606,2509.4,2508.8,3.98596587]
[1750907252086,3.4606,2509.4,2508.3,3.98676394]
[1750907252300,0.8142,2509.3,2508.6,3.98614698]
[1750907252498,0.8142,2509.3,2508.5,3.9864429]
[1750907252499,9.5662,2509.3,2508.5,3.9864429]
[1750907252795,9.5662,2509.3,2508.3,3.98675813]
[1750907252999,1.70118282,2509.2,2508.4,3.98659437]
[1750907253490,1.70118282,2509.2,2508.5,3.98643143]
[1750907253688,10.0,2509.7,2508.3,4.77565245]
[1750907253689,9.561,2509.1,2508.3,4.77565245]
[1750907253889,3.146,2509.5,2509.4,3.98501633]
[1750907254092,3.146,2509.5,2509.3,3.98516209]
[1750907254802,3.146,2509.5,2509.2,3.98529882]
[1750907255004,3.146,2509.5,2508.9,3.98570814]
[1750907255305,3.146,2509.5,2509.0,0.1992]
[1750907255306,3.74122,2509.5,2509.0,0.1992]
[1750907255465,12.28802,2509.5,2508.7,3.98610506]
[1750907255666,12.28802,2509.5,2509.1,0.1992]
[1750907255868,0.39602,2509.5,2508.9,3.98570661]
[1750907256073,0.1992,2510.0,2509.4,4.18421419]
[1750907256301,3.3452,2510.0,2509.6,3.98457886]
[1750907256526,0.33297272,2509.9,2509.7,3.98451583]
[1750907256686,0.33297272,2509.9,2509.8,3.98438122]
[1750907257012,0.33297272,2509.9,2509.8,4.18358122]
[1750907259088,0.33297272,2509.9,2509.8,5.01138122]
[1750907260811,9.561,2510.5,2510.2,3.98363209]
[1750907261011,10.8317,2510.5,2509.8,0.1992]
[1750907261306,9.561,2510.5,2510.4,3.98342893]
[1750907261501,9.561,2510.5,2510.3,4.18195316]
[1750907261811,9.561,2510.5,2510.3,0.1984]
[1750907262309,0.1984,2510.3,2509.8,0.1992]
[1750907263282,0.8442,2510.2,2509.8,0.1992]
[1750907263809,1.94846,2510.2,2509.8,0.1992]
[1750907264177,1.94846,2510.2,2509.8,4.1835801]
[1750907264380,10.3536,2510.5,2509.7,3.98447833]
[1750907264586,10.3536,2510.5,2510.2,3.98359071]
[1750907265717,0.8035,2510.8,2509.5,3.98485754]
[1750907265917,3.146,2511.2,2510.5,3.98311257]
[1750907266091,10.3625,2511.7,2510.5,3.98311257]
[1750907266092,3.3444,2511.3,2510.9,4.1809267]
[1750907266491,3.146,2511.3,2511.0,3.98242147]
[1750907266920,0.33297272,2511.2,2511.1,3.9823185]
[1750907267427,0.33297272,2511.2,2511.1,5.0201185]
[1750907269490,0.33297272,2511.2,2511.1,0.1984]
[1750907270086,0.33297272,2511.2,2510.7,0.8394]
[1750907270087,0.33297272,2511.2,2510.7,4.82234361]
[1750907270282,0.33297272,2511.2,2511.0,0.1984]
[1750907271534,3.145,2511.1,2510.4,8.704]
[1750907271731,3.145,2511.1,2510.9,0.1984]
[1750907272095,3.145,2511.1,2510.9,4.18101871]
[1750907272295,3.145,2511.1,2510.9,0.1984]
[1750907272834,3.145,2511.1,2510.9,4.18100362]
[1750907273215,3.145,2511.1,2510.9,0.1984]
[1750907273617,3.4595,2511.1,2510.9,0.1984]
[1750907273995,0.1984,2511.3,2510.9,0.1984]
[1750907274194,0.7922,2511.5,2510.8,4.83228657]
[1750907274195,3.144,2511.4,2510.8,4.83228657]
[1750907274436,3.144,2511.4,2510.9,3.98253869]
[1750907274598,0.8634,2511.8,2510.8,0.8495]
[1750907274797,3.144,2511.7,2511.2,3.98203406]
[1750907275044,3.144,2511.7,2510.9,3.9826357]
[1750907275199,12.703,2512.3,2511.7,3.98126423]
[1750907275399,1.68961272,2512.2,2511.0,4.83656553]
[1750907275627,3.47697272,2512.1,2511.0,4.83665371]
[1750907275829,0.33297272,2512.0,2511.8,3.98110788]
[1750907276336,0.33297272,2512.0,2511.7,3.98132896]
[1750907276695,0.33297272,2512.0,2511.8,4.83167026]
[1750907276892,0.33297272,2512.0,2511.8,0.8506]
[1750907277647,0.33297272,2512.0,2511.8,4.83178666]
[1750907278030,0.33297272,2512.0,2511.8,3.98118666]
[1750907278215,0.33297272,2512.0,2511.5,0.8557]
[1750907278621,0.33297272,2512.0,2511.5,4.8373734]
[1750907278833,0.33297272,2512.0,2511.5,3.9816734]
[1750907279599,0.33297272,2512.0,2511.2,3.98206821]
[1750907279806,0.33297272,2512.0,2511.7,3.98124268]
[1750907280006,0.33297272,2512.0,2511.1,0.8557]
[1750907280241,0.76183999,2512.0,2510.8,0.8557]
[1750907280405,3.98116364,2511.9,2510.8,4.83834307]
[1750907280727,3.85383999,2512.0,2510.9,3.9826357]
[1750907280917,3.85383999,2512.0,2511.0,3.98241916]
[1750907281229,0.8637,2511.7,2510.5,4.83893646]
[1750907281440,10.8637,2511.5,2510.2,3.98372053]
[1750907281741,0.8678,2511.1,2509.8,0.8583]
[1750907282036,3.092,2511.0,2509.8,0.8583]
[1750907282633,3.092,2511.0,2510.3,3.98352488]
[1750907282831,3.092,2511.0,2510.1,3.98379251]
[1750907283030,1.35128,2510.9,2510.1,3.98379251]
[1750907283640,1.35128,2510.9,2509.8,0.8583]
[1750907283846,3.092,2511.0,2509.9,3.98422247]
[1750907284032,3.092,2511.0,2510.4,3.98331201]
[1750907284231,3.2904,2511.0,2510.6,0.1984]
[1750907284741,3.092,2511.4,2509.9,0.8397]
[1750907284940,3.092,2511.4,2510.4,4.82311899]
[1750907285245,0.59141,2511.3,2510.9,0.1984]
[1750907285738,0.1984,2511.3,2510.9,0.1984]
[1750907286242,3.092,2511.4,2510.5,3.98326998]
[1750907286458,0.1984,2511.1,2510.6,0.1984]
[1750907287018,0.7928,2511.0,2510.6,0.1984]
[1750907287324,0.7928,2511.0,2510.2,3.98368525]
[1750907287520,0.1984,2510.8,2510.3,0.1984]
[1750907288709,0.1984,2510.8,2510.3,4.18193018]
[1750907288914,3.092,2510.7,2510.3,4.18193018]
[1750907289747,0.7928,2511.0,2509.7,13.44906968]
[1750907289748,0.7928,2511.0,2510.6,3.98309702]
[1750907289955,3.093,2510.8,2510.5,0.1984]
[1750907290157,3.48158,2510.8,2510.5,0.1984]
[1750907290453,3.48158,2510.8,2510.1,3.9838598]
[1750907290654,3.67998,2510.8,2510.3,0.1984]
[1750907291658,3.2914,2510.8,2510.3,0.1984]
[1750907291833,3.093,2510.7,2510.6,0.1984]
[1750907292164,3.093,2510.7,2509.3,0.8528]
[1750907292165,0.8205,2510.6,2509.3,0.8528]
[1750907292317,1.1298,2510.6,2509.6,3.9845761]
[1750907292699,3.98358761,2510.3,2509.0,3.98551966]
[1750907292943,0.8205,2509.9,2509.0,3.98551966]
[1750907293147,3.093,2509.8,2508.9,0.8528]
[1750907293350,3.093,2509.8,2509.1,3.98535535]
[1750907293648,3.093,2509.8,2509.0,3.98561466]
[1750907293856,3.093,2509.8,2508.9,0.8528]
[1750907294029,0.17134215,2510.3,2508.9,4.83848931]
[1750907294229,0.17695738,2511.1,2509.2,0.8528]
[1750907294541,3.98215992,2511.2,2510.2,3.98373689]
[1750907294851,10.8205,2511.3,2510.0,4.83673904]
[1750907294852,0.8205,2511.3,2510.1,3.98390502]
[1750907295156,0.8205,2511.3,2510.5,3.98325982]
[1750907295356,0.72432272,2511.2,2510.4,3.98334434]
[1750907295520,0.33297272,2511.1,2510.3,3.98355683]
[1750907295720,0.33297272,2511.1,2510.0,0.8528]
[1750907295937,3.093,2511.0,2510.5,3.98316501]
[1750907296150,3.42597272,2511.0,2510.5,3.98316501]
[1750907296344,3.80770499,2511.0,2510.0,0.8528]
[1750907296552,1.20407272,2510.9,2509.6,0.8599]
[1750907296750,0.8711,2510.6,2509.6,3.98457548]
[1750907297050,0.8711,2510.3,2508.7,0.8599]
[1750907297252,0.814,2509.8,2508.7,0.8599]
[1750907297442,3.093,2510.0,2508.7,0.8599]
[1750907297641,0.3907,2509.9,2508.7,0.8599]
[1750907297844,0.8419,2509.3,2507.8,0.8592]
[1750907298037,3.093,2509.2,2507.8,0.8592]
[1750907298437,0.8141,2509.1,2507.9,3.98739981]
[1750907298660,0.8141,2509.1,2508.5,0.8008]
[1750907298832,7.68272258,2510.5,2508.5,4.78720577]
[1750907298833,0.8141,2509.8,2508.5,4.78720577]
[1750907299150,0.8141,2509.8,2508.7,3.98612827]
[1750907299352,0.8141,2509.8,2509.3,3.98514196]
[1750907299659,0.8141,2509.8,2509.5,3.98478793]
[1750907300122,0.8141,2509.8,2508.6,8.63]
[1750907300324,1.20481,2509.8,2508.6,8.63]
[1750907300557,3.093,2509.7,2509.1,3.98543585]
[1750907300745,1.20481,2509.8,2508.6,3.98628717]
[1750907301138,1.20481,2509.8,2509.1,3.98538895]
[1750907301339,1.20481,2509.8,2508.9,3.9857]
[1750907301554,0.429781,2509.7,2508.9,3.9857]
[1750907301858,0.429781,2509.7,2509.0,3.98562463]
[1750907302060,0.1992,2509.6,2509.1,0.1992]
[1750907302622,0.628981,2509.7,2509.0,3.98560268]
[1750907302826,0.628981,2509.7,2509.2,0.1992]
[1750907303639,0.1992,2509.4,2509.0,0.1992]
[1750907304646,1.20481,2509.8,2508.5,0.8008]
[1750907304960,3.2932,2509.7,2509.2,0.1992]
[1750907305455,0.1992,2509.4,2508.9,0.1992]
[1750907306043,0.53217272,2509.4,2508.9,0.1992]
[1750907306347,0.1992,2509.2,2508.7,0.1992]
[1750907306525,0.73606942,2509.2,2508.7,0.1992]
[1750907306855,0.8515,2509.3,2508.3,3.98672423]
[1750907307060,0.1992,2509.0,2508.6,0.1992]
[1750907307260,3.2932,2509.0,2508.6,0.1992]
[1750907307442,0.8515,2509.3,2508.6,0.1992]
[1750907307638,0.8515,2509.3,2507.9,13.98739981]
[1750907307845,0.8515,2509.3,2508.5,3.98632892]
[1750907308067,1.27934727,2509.3,2508.6,3.98627934]
[1750907308255,1.27934727,2509.3,2508.0,3.98724082]
[1750907308767,1.27934727,2509.3,2507.9,3.98739981]
[1750907308976,0.8515,2509.3,2508.8,3.98592484]
[1750907309182,0.8515,2509.3,2508.7,3.98606974]
[1750907309468,0.8515,2509.3,2508.8,3.98582737]
[1750907309670,0.8515,2509.3,2508.8,3.98585549]
[1750907310036,0.8515,2509.3,2508.9,3.98579959]
[1750907310274,0.8515,2509.3,2509.0,3.98555874]
[1750907310482,0.8515,2509.3,2508.8,3.98583218]
[1750907310658,0.8515,2509.3,2508.9,3.98579713]
[1750907311378,0.8515,2509.3,2508.8,3.98596938]
[1750907311681,0.8515,2509.3,2508.8,3.98595818]
[1750907312263,0.8515,2509.3,2507.9,8.602]
[1750907312577,0.8515,2509.3,2508.6,3.98617244]
[1750907312783,0.39455,2509.2,2508.6,3.98617244]
[1750907313196,0.8515,2509.3,2508.6,3.9861325]
[1750907313807,0.8515,2509.3,2508.7,3.98610313]
[1750907313964,0.8515,2509.3,2507.8,13.42620028]
[1750907313965,0.8515,2509.3,2508.6,3.98622635]
[1750907314162,0.8515,2509.3,2508.5,3.98640135]
[1750907314659,0.8515,2509.3,2508.6,3.98624197]
[1750907314882,1.24605,2509.3,2508.6,3.98624197]
[1750907315092,1.24605,2509.3,2508.5,3.98638207]
[1750907315590,10.80705,2509.3,2508.5,3.98638207]
[1750907315779,10.80705,2509.3,2508.6,3.98627276]
[1750907316089,10.4125,2509.3,2508.6,3.98627276]
[1750907316470,10.4125,2509.3,2508.5,3.98638697]
[1750907317495,0.1992,2509.2,2508.8,0.1992]
[1750907318393,3.2352,2509.2,2508.8,0.1992]
[1750907319301,3.036,2509.2,2508.2,3.98685805]
[1750907319489,0.1992,2508.9,2508.5,0.1992]
[1750907321166,0.1992,2508.9,2508.5,4.18562426]
[1750907321566,0.1992,2508.9,2508.5,0.1992]
[1750907321973,0.1992,2508.9,2508.5,4.18560694]
[1750907322200,2.14375,2509.1,2508.1,3.9869802]
[1750907322406,3.036,2509.0,2508.6,0.1992]
[1750907322566,0.7989,2509.1,2507.8,4.82919028]
[1750907322891,3.036,2510.0,2509.6,3.98458521]
[1750907323093,3.036,2510.0,2509.8,0.1992]
[1750907323270,3.036,2510.0,2508.2,3.036]
[1750907323271,0.8381,2509.8,2508.3,0.825]
[1750907323470,0.8381,2509.8,2509.3,3.98506754]
[1750907323677,1.0373,2509.8,2509.3,0.1992]
[1750907324177,0.8381,2509.8,2508.9,3.98568623]
[1750907324579,0.8381,2509.8,2509.0,3.98563308]
[1750907324992,0.8381,2509.8,2508.6,3.98628717]
[1750907325191,2.122835,2509.8,2509.2,3.98530815]
[1750907325594,2.122835,2509.8,2509.3,3.98513671]
[1750907325794,2.122835,2509.8,2509.1,3.98546635]
[1750907325795,0.8381,2509.8,2509.5,3.98482073]
[1750907325991,0.8381,2509.8,2509.4,3.98495398]
[1750907326396,0.8381,2509.8,2509.5,3.98484747]
[1750907326578,0.8381,2509.8,2509.6,3.98467298]
[1750907326774,0.8381,2509.8,2509.1,3.9854928]
[1750907326980,3.036,2510.0,2509.8,3.98425958]
[1750907327207,0.8469,2510.1,2509.8,3.98425958]
[1750907327419,0.8469,2510.1,2509.3,3.98512872]
[1750907327420,0.8469,2510.1,2509.9,3.98410521]
[1750907327578,0.8469,2510.1,2509.8,3.98428058]
[1750907329023,1.23519,2510.1,2509.7,3.98447601]
[1750907329828,1.23519,2510.1,2509.3,3.9851257]
[1750907330027,1.23519,2510.1,2509.2,3.98533207]
[1750907330215,1.23519,2510.1,2508.8,3.98588551]
[1750907330216,3.035,2510.0,2509.3,3.98517514]
[1750907330432,3.035,2510.0,2509.4,3.98501042]
[1750907330612,0.8036,2510.1,2509.7,3.9844427]
[1750907330942,0.8036,2510.1,2509.8,3.98437611]
[1750907331602,0.8036,2510.1,2509.2,3.98532226]
[1750907332016,0.8036,2510.1,2509.6,3.9845616]
[1750907332806,0.8036,2510.1,2509.3,3.98507183]
[1750907332807,3.8386,2510.1,2509.3,3.98507183]
[1750907333013,0.8275,2509.9,2509.2,3.9852991]
[1750907333440,0.8275,2509.9,2509.1,3.98549083]
[1750907334159,0.1992,2509.7,2509.2,0.1992]
[1750907334316,0.1992,2509.7,2509.2,4.18452468]
[1750907334514,0.1992,2509.7,2509.2,0.1992]
[1750907336422,0.1992,2509.7,2509.3,3.98506022]
[1750907336616,0.8275,2509.9,2509.4,3.98491538]
[1750907336810,0.8275,2509.9,2508.9,8.526]
[1750907337010,0.8275,2509.9,2509.7,4.1837367]
[1750907337718,0.8275,2509.9,2509.7,4.18373181]
[1750907337931,0.8275,2509.9,2509.7,0.1992]
[1750907338253,3.035,2510.1,2509.7,0.1992]
[1750907338644,3.035,2510.1,2509.7,4.18363328]
[1750907338821,3.035,2510.1,2509.8,3.98437629]
[1750907339217,3.035,2510.1,2509.7,4.18368525]
[1750907339450,3.035,2510.1,2509.6,3.98469305]
[1750907339451,3.035,2510.1,2509.6,3.98464612]
[1750907339652,3.3385,2510.1,2509.2,0.8572]
[1750907339824,0.7884,2510.0,2509.2,9.3722]
[1750907340148,0.7884,2510.0,2509.4,3.98490312]
[1750907340356,0.7884,2510.0,2509.3,3.98513597]
[1750907340534,0.41269,2509.9,2509.3,3.98513597]
[1750907340729,0.41269,2509.9,2509.4,3.98500602]
[1750907341143,0.41269,2509.9,2508.9,0.7891]
[1750907341346,0.41269,2509.9,2509.1,8.512]
[1750907341657,0.41269,2509.9,2509.0,3.98565165]
[1750907341838,0.51853089,2509.8,2509.4,3.98501102]
[1750907342035,0.7884,2510.0,2509.5,3.98476398]
[1750907342222,1.12137272,2510.0,2509.5,3.98476398]
[1750907342557,1.12137272,2510.0,2509.6,3.98468723]
[1750907342754,1.12137272,2510.0,2509.4,8.508]
[1750907342964,0.33297272,2510.0,2509.9,3.98422247]
[1750907343330,0.33297272,2510.0,2509.7,3.98453998]
[1750907343530,0.33297272,2510.0,2509.7,12.48853998]
[1750907343724,0.33297272,2510.0,2509.7,8.504]
[1750907343971,0.33297272,2510.0,2509.7,12.488427]
[1750907344465,0.33297272,2510.0,2509.8,3.98437232]
[1750907344773,0.8033,2510.4,2509.8,3.98437232]
[1750907345764,0.8217,2510.2,2509.3,3.9850694]
[1750907346056,4.80544825,2510.2,2509.3,3.9850694]
[1750907346262,0.8277,2510.0,2509.1,3.98542991]
[1750907346665,0.8277,2509.8,2508.2,0.8684]
[1750907346867,0.8039,2509.3,2507.9,0.812]
[1750907347082,0.8039,2508.9,2507.6,9.304]
[1750907347263,0.8039,2508.9,2507.6,13.29176646]
[1750907347564,0.8039,2508.9,2508.1,3.98692485]
[1750907347762,0.8039,2508.9,2507.9,3.9872928]
[1750907347945,1.28283993,2508.9,2507.6,13.2917631]
[1750907348144,0.8039,2508.9,2508.1,3.98698014]
[1750907348739,0.8039,2508.9,2508.2,3.98691302]
[1750907349345,0.8039,2508.9,2508.0,3.98724082]
[1750907349532,0.1992,2508.8,2508.3,4.18593827]
[1750907350053,0.8039,2508.9,2508.5,0.1992]
[1750907350245,1.90421,2508.9,2508.5,0.1992]
[1750907351244,1.90421,2508.9,2507.8,3.98746004]
[1750907351245,0.8039,2508.9,2507.7,3.98763846]
[1750907351448,1.13687272,2508.9,2508.7,0.1992]
[1750907351848,1.13687272,2508.9,2508.4,3.98650173]
[1750907352047,1.13687272,2508.9,2508.6,0.1992]
[1750907352435,1.13488025,2508.9,2508.6,0.1992]
[1750907353039,0.1992,2508.8,2508.3,0.1992]
[1750907354267,1.13488025,2508.9,2508.4,3.986605]
[1750907354469,0.33297272,2508.9,2508.6,0.1992]
[1750907357590,0.33297272,2508.9,2508.6,4.18548319]
[1750907357884,0.33297272,2508.9,2508.6,0.1992]
[1750907359472,0.33297272,2508.9,2508.3,12.44563811]
[1750907359970,0.33297272,2508.9,2508.5,3.9863308]
[1750907360138,0.33297272,2508.9,2508.3,8.459]
[1750907360342,0.33297272,2508.9,2508.1,3.98693191]
[1750907360545,0.33297272,2508.9,2508.3,3.98676234]
[1750907361080,0.33297272,2508.9,2508.1,12.43993191]
[1750907361081,0.33297272,2508.9,2508.2,3.98687852]
[1750907361284,1.44903999,2508.9,2508.2,3.98687852]
[1750907361578,1.44903999,2508.9,2508.1,8.453]
[1750907361579,0.33297272,2508.9,2508.1,8.453]
[1750907361754,0.33297272,2508.9,2508.2,3.98689515]
[1750907362072,0.33297272,2508.9,2508.4,3.98648573]
[1750907362277,0.33297272,2508.9,2508.3,3.98674269]
[1750907363104,0.33297272,2508.9,2508.1,12.44005161]
[1750907363105,0.33297272,2508.9,2508.4,3.98657073]
[1750907363403,0.33297272,2508.9,2508.8,13.98596938]
[1750907363696,0.33297272,2508.9,2508.8,12.42896938]
[1750907364684,0.8233,2509.8,2509.1,3.98540289]
[1750907365368,1.08233,2509.7,2509.0,3.98561679]
[1750907365603,1.08233,2509.7,2509.0,12.42261679]
[1750907366178,1.08233,2509.7,2509.1,3.98549115]
[1750907366375,0.8234,2509.6,2508.8,8.436]
[1750907366574,2.973,2509.5,2508.8,3.98591097]
[1750907366895,0.37964,2509.4,2508.5,12.42033321]
[1750907367209,14.36470779,2509.4,2508.3,0.8426]
[1750907367383,3.98535961,2509.2,2508.3,8.43]
[1750907367701,3.98553581,2509.1,2508.2,8.43]
[1750907367868,10.0,2509.2,2508.1,3.98708175]
[1750907368070,0.8234,2509.0,2508.1,3.98708175]
[1750907368271,0.8234,2509.0,2508.1,8.428]
[1750907368480,10.8234,2509.0,2508.1,3.98708049]
[1750907368703,10.8234,2509.0,2508.1,12.41308049]
[1750907369086,14.80913767,2509.0,2508.1,8.426]
[1750907369380,16.68855708,2509.0,2508.1,12.41305011]
[1750907369584,16.88775708,2509.0,2508.5,0.1992]
[1750907370401,10.0,2508.8,2508.5,0.1992]
[1750907370701,16.95899132,2508.8,2508.5,0.1992]
[1750907370905,0.8365,2509.3,2508.6,8.42]
[1750907371104,9.562,2509.5,2508.7,8.42]
[1750907371306,9.562,2509.5,2508.8,3.98586375]
[1750907371875,9.562,2509.5,2508.7,12.40612685]
[1750907372205,10.0,2509.4,2508.7,8.416]
[1750907372405,10.0,2509.4,2508.7,12.40212305]
[1750907372714,11.29101499,2509.5,2508.7,12.40212305]
[1750907372715,9.562,2509.5,2508.7,8.416]
[1750907372871,0.8365,2509.6,2508.8,0.8452]
[1750907373075,0.8365,2509.6,2509.3,3.98514968]
[1750907373376,0.8365,2509.6,2508.8,0.8452]
[1750907373798,0.8365,2509.6,2508.8,4.83112341]
[1750907373999,0.8365,2509.6,2509.4,3.98500321]
[1750907374388,0.8365,2509.6,2509.0,3.98555319]
[1750907374585,1.59674859,2509.6,2508.8,8.407]
[1750907374896,1.59674859,2509.6,2508.8,12.39290752]
[1750907375489,1.59674859,2509.6,2508.9,3.98577372]
[1750907375688,1.59674859,2509.6,2508.8,3.98590878]
[1750907376277,1.59674859,2509.6,2508.8,3.98595625]
[1750907376807,0.8365,2509.6,2508.7,8.403]
[1750907377015,0.8365,2509.6,2509.1,3.9854166]
[1750907377813,0.8365,2509.6,2509.1,3.9853993]
[1750907378108,0.8365,2509.6,2509.0,3.98559413]
[1750907378901,0.8365,2509.6,2508.9,8.396]
[1750907379505,0.8365,2509.6,2509.1,3.98535403]
[1750907380007,0.8365,2509.6,2509.2,3.98523532]
[1750907380181,0.8365,2509.6,2509.3,3.9851325]
[1750907380383,0.8365,2509.6,2509.4,3.98501189]
[1750907380581,0.8365,2509.6,2509.5,3.98485754]
[1750907380809,10.0,2510.2,2510.0,3.98390826]
[1750907380810,0.8594,2510.2,2510.0,3.98390826]
[1750907380997,0.8594,2510.2,2510.1,3.98390502]
[1750907381506,0.8594,2510.2,2510.0,4.18321181]
[1750907382106,0.8594,2510.2,2510.1,3.98390502]
[1750907382508,0.8705,2510.5,2509.4,8.387]
[1750907382679,0.1984,2510.4,2510.0,0.1992]
[1750907382879,0.59589,2510.4,2510.0,0.1992]
[1750907383209,0.59589,2510.4,2510.0,4.18322741]
[1750907383602,0.59589,2510.4,2510.0,0.1992]
[1750907383915,0.1984,2510.4,2510.0,4.18325086]
[1750907384110,10.1984,2510.4,2510.0,0.1992]
[1750907384313,10.1984,2510.4,2509.4,3.98489708]
[1750907384314,0.8038,2510.3,2509.4,3.98489708]
[1750907384619,0.8038,2509.9,2508.9,8.372]
[1750907384912,0.1992,2509.7,2509.2,0.1992]
[1750907385610,2.906,2509.8,2509.4,4.18410629]
[1750907386112,2.906,2509.8,2509.4,0.1992]